bitfinex/quotes_BTCUSD_20260315
["timestamp","ask_amount","ask_price","bid_price","bid_amount"]
[1773540304203,0.06431642,71184.0,71163.0,0.07026024]
[1773540304800,0.06431642,71184.0,71162.0,0.01828201]
[1773540306388,0.06431642,71182.0,71162.0,0.01828201]
[1773540307515,0.06431642,71182.0,71163.0,0.01306246]
[1773540307718,0.06431642,71182.0,71164.0,0.01306246]
[1773540307911,0.06431642,71182.0,71165.0,0.01306246]
[1773540308117,0.06431642,71182.0,71166.0,0.01306246]
[1773540308320,0.06431642,71179.0,71156.0,0.07059391]
[1773540308637,0.06431642,71179.0,71156.0,0.07059373]
[1773540309199,0.06431642,71177.0,71156.0,0.07059373]
[1773540310021,0.06431642,71177.0,71156.0,0.000326]
[1773540310232,0.06431642,71177.0,71148.0,0.07047524]
[1773540310233,0.06431642,71177.0,71151.0,0.07027258]
[1773540310578,0.05899128,71175.0,71149.0,0.07027505]
[1773540311089,0.07024839,71179.0,71149.0,0.07027505]
[1773540311090,1e-08,71188.0,71162.0,0.00942878]
[1773540311221,1e-08,71188.0,71170.0,0.00942878]
[1773540311426,0.00144,71194.0,71173.0,0.00942878]
[1773540311749,0.00144,71193.0,71173.0,0.00035826]
[1773540311951,0.07044922,71196.0,71173.0,0.00035826]
[1773540311952,0.05899128,71195.0,71173.0,0.00035826]
[1773540312158,0.06164978,71191.0,71174.0,0.00144]
[1773540312540,0.13188382,71191.0,71175.0,0.07024938]
[1773540314440,0.06164978,71191.0,71175.0,0.07024938]
[1773540316112,0.00166001,71192.0,71176.0,0.00351081]
[1773540316476,0.00166001,71192.0,71175.0,0.07024938]
[1773540316678,0.00022001,71192.0,71175.0,0.07024938]
[1773540316873,0.00144,71191.0,71175.0,0.07024938]
[1773540317078,0.06308978,71191.0,71175.0,0.07024938]
[1773540317814,0.06308978,71191.0,71183.0,0.08]
[1773540319013,0.07167421,71191.0,71183.0,0.15024064]
[1773540319180,0.06164978,71190.0,71183.0,0.15024064]
[1773540324321,0.06164978,71190.0,71183.0,0.08]
[1773540324533,0.06164978,71188.0,71177.0,0.07024678]
[1773540324851,0.06164978,71188.0,71174.0,0.07024938]
[1773540324852,0.06164978,71188.0,71178.0,0.01304072]
[1773540325049,0.06164978,71188.0,71174.0,0.07024995]
[1773540326899,0.07023754,71187.0,71174.0,0.07024995]
[1773540327101,0.05795444,71186.0,71174.0,0.07024995]
[1773540327277,0.05795444,71184.0,71174.0,0.07024995]
[1773540327478,0.05795444,71184.0,71168.0,0.07025556]
[1773540327631,0.05831248,71184.0,71168.0,0.07025556]
[1773540329041,0.07024149,71183.0,71164.0,0.05971261]
[1773540329244,0.12819593,71183.0,71164.0,0.05971261]
[1773540329446,0.00022001,71207.0,71170.0,0.17763277]
[1773540329648,0.07043818,71207.0,71182.0,0.05971261]
[1773540329880,0.00144,71206.0,71184.0,0.05971261]
[1773540330390,0.00144,71206.0,71185.0,0.13904201]
[1773540330592,0.00134,71206.0,71187.0,0.05971261]
[1773540330748,0.00134,71206.0,71189.0,0.05971261]
[1773540330946,0.07021978,71205.0,71192.0,0.07023261]
[1773540331147,0.00022001,71200.0,71193.0,0.13904201]
[1773540331354,0.00022001,71200.0,71192.0,0.12994522]
[1773540331556,0.00022001,71200.0,71193.0,0.13901093]
[1773540331902,0.00022001,71200.0,71192.0,0.12994522]
[1773540332108,0.00022001,71200.0,71193.0,0.13901093]
[1773540332410,0.00022001,71200.0,71192.0,0.07023261]
[1773540332555,0.00022001,71200.0,71193.0,0.1389904]
[1773540332908,0.00022001,71200.0,71192.0,0.07023261]
[1773540333070,0.00022001,71200.0,71193.0,0.13899006]
[1773540333270,0.00022001,71200.0,71192.0,0.07023261]
[1773540333470,0.00022001,71200.0,71193.0,0.13897323]
[1773540333677,0.00022001,71200.0,71192.0,0.07023261]
[1773540333875,0.00022001,71200.0,71193.0,0.13897443]
[1773540334289,0.00144,71203.0,71192.0,0.12994522]
[1773540334458,0.00144,71203.0,71192.0,0.07023261]
[1773540334668,0.00166001,71207.0,71194.0,0.05971261]
[1773540334870,0.00166001,71207.0,71192.0,0.11193489]
[1773540334871,0.00032743,71207.0,71196.0,0.05971261]
[1773540335085,0.00144,71206.0,71196.0,0.05971261]
[1773540335990,0.00032743,71207.0,71197.0,0.20914703]
[1773540335991,0.00144,71205.0,71197.0,0.20914703]
[1773540336194,0.00144,71205.0,71197.0,0.07022767]
[1773540336416,0.00022001,71211.0,71197.0,0.07022767]
[1773540336631,0.00144,71214.0,71199.0,0.05971261]
[1773540336837,0.00144,71214.0,71200.0,0.13888709]
[1773540336838,0.05795444,71213.0,71200.0,0.13888709]
[1773540337004,0.05795444,71213.0,71201.0,0.13888709]
[1773540337204,0.05795444,71213.0,71197.0,0.00010742]
[1773540337466,0.05795444,71213.0,71198.0,0.01301697]
[1773540337667,0.05795444,71213.0,71197.0,0.00010742]
[1773540337831,0.05795444,71213.0,71198.0,0.01301797]
[1773540338031,0.00022001,71206.0,71197.0,0.00010742]
[1773540338199,0.00166001,71206.0,71198.0,0.013018]
[1773540338404,0.00166001,71206.0,71197.0,0.00010742]
[1773540338603,0.00166001,71206.0,71198.0,0.01301888]
[1773540338848,0.00166001,71206.0,71197.0,0.00010742]
[1773540339053,0.00166001,71206.0,71198.0,0.01301899]
[1773540339247,0.00166001,71206.0,71197.0,0.00010742]
[1773540339430,0.00166001,71206.0,71198.0,0.0130232]
[1773540340205,0.07021288,71212.0,71200.0,0.05971261]
[1773540340411,0.07165426,71211.0,71202.0,0.05971261]
[1773540340627,0.07165426,71211.0,71199.0,0.0702257]
[1773540340826,0.07165426,71211.0,71200.0,0.01303062]
[1773540341033,0.1296087,71211.0,71197.0,0.0703347]
[1773540341231,0.1296087,71211.0,71198.0,0.01303083]
[1773540341512,0.05795444,71210.0,71199.0,0.01303083]
[1773540341711,0.05795444,71210.0,71200.0,0.01303083]
[1773540341951,0.05795444,71210.0,71197.0,0.07033484]
[1773540342158,0.07021584,71209.0,71188.0,0.07023655]
[1773540342358,0.05795444,71208.0,71188.0,0.07023655]
[1773540343059,0.00010736,71209.0,71189.0,0.05971261]
[1773540343283,0.00154736,71209.0,71189.0,0.05971261]
[1773540343483,0.00144,71209.0,71189.0,0.05971261]
[1773540344224,0.07021682,71208.0,71190.0,0.07023458]
[1773540344461,0.07021682,71208.0,71191.0,0.06115261]
[1773540344859,0.00144,71209.0,71191.0,0.06115261]
[1773540345284,0.07021485,71212.0,71191.0,0.06115261]
[1773540345530,0.00022001,71208.0,71191.0,0.06125997]
[1773540345881,0.07020809,71217.0,71194.0,0.05971261]
[1773540346058,0.00022001,71216.0,71198.0,0.05971261]
[1773540346258,0.00022001,71216.0,71200.0,0.05971261]
[1773540346459,0.00144,71215.0,71202.0,0.05971261]
[1773540349227,0.00144,71215.0,71204.0,0.07022077]
[1773540350442,0.00144,71215.0,71205.0,0.05661262]
[1773540351899,0.00144,71215.0,71206.0,0.0702188]
[1773540352300,0.06022686,71213.0,71200.0,0.07022379]
[1773540352623,0.07043097,71214.0,71202.0,0.06009467]
[1773540352832,0.07187097,71214.0,71204.0,0.06009467]
[1773540353221,0.00144,71213.0,71204.0,0.06009467]
[1773540353976,0.00022001,71214.0,71205.0,0.07021978]
[1773540354179,0.00166001,71214.0,71205.0,0.13031445]
[1773540355871,0.07187106,71214.0,71205.0,0.13031445]
[1773540356072,0.00166001,71214.0,71205.0,0.07021978]
[1773540357328,0.00166001,71214.0,71206.0,0.13895426]
[1773540357521,0.00166001,71214.0,71205.0,0.07021978]
[1773540357718,0.00166001,71214.0,71206.0,0.13895426]
[1773540357926,0.00166001,71214.0,71205.0,0.13031445]
[1773540358177,0.00166001,71214.0,71207.0,0.07021781]
[1773540358350,0.00166001,71214.0,71208.0,0.13895419]
[1773540359281,0.00166001,71214.0,71209.0,0.13895419]
[1773540359583,0.00166001,71214.0,71210.0,0.13895419]
[1773540359783,0.00166001,71214.0,71208.0,0.07021681]
[1773540360081,0.00166001,71214.0,71209.0,0.13918752]
[1773540360240,0.00166001,71214.0,71210.0,0.13918752]
[1773540360446,0.00166001,71214.0,71208.0,0.07021681]
[1773540360648,0.00166001,71214.0,71209.0,0.13919874]
[1773540360995,0.00166001,71214.0,71198.0,0.11141721]
[1773540360996,0.02273092,71212.0,71198.0,0.11141721]
[1773540361143,0.02273092,71212.0,71196.0,0.07022848]
[1773540361144,0.06018686,71211.0,71196.0,0.07022848]
[1773540361350,0.06018686,71211.0,71195.0,0.07022949]
[1773540361872,0.06018686,71211.0,71194.0,0.0002]
[1773540361873,0.06018686,71211.0,71196.0,0.01305703]
[1773540362056,0.06018686,71211.0,71194.0,0.07043037]
[1773540363197,0.00144,71211.0,71195.0,0.06009467]
[1773540363403,0.00022001,71221.0,71197.0,0.06009467]
[1773540363700,0.0002922,71225.0,71206.0,0.06009467]
[1773540363898,0.00144,71224.0,71208.0,0.06009467]
[1773540364861,0.00022001,71222.0,71208.0,0.06009467]
[1773540365179,0.00022001,71222.0,71210.0,0.06009467]
[1773540365420,0.00144,71226.0,71210.0,0.06009467]
[1773540366035,0.07019143,71234.0,71209.0,0.07021584]
[1773540366036,0.07162357,71242.0,71221.0,0.04363904]
[1773540366366,0.06022686,71243.0,71222.0,0.06153467]
[1773540367101,0.07018331,71242.0,71223.0,0.07020204]
[1773540367303,0.07018331,71242.0,71224.0,0.06009467]
[1773540368952,0.07029042,71243.0,71224.0,0.06009467]
[1773540369162,0.00010742,71243.0,71225.0,0.07020007]
[1773540369328,0.00010742,71243.0,71226.0,0.06009467]
[1773540370233,0.07028975,71243.0,71226.0,0.06009467]
[1773540371378,0.07028975,71243.0,71228.0,0.06009467]
[1773540371523,0.07050976,71243.0,71228.0,0.06009467]
[1773540373091,0.07050976,71243.0,71228.0,0.05994533]
[1773540373313,0.07050976,71243.0,71229.0,0.13029079]
[1773540373493,0.07050976,71243.0,71229.0,0.07019612]
[1773540373677,0.13073662,71243.0,71229.0,0.07019612]
[1773540373882,0.06022686,71242.0,71229.0,0.07019612]
[1773540374080,0.06022686,71242.0,71229.0,0.06984504]
[1773540375699,0.0701843,71241.0,71223.0,0.07020204]
[1773540375884,0.0701843,71241.0,71224.0,0.06009467]
[1773540376545,0.0705948,71241.0,71224.0,0.06009467]
[1773540377106,0.0705948,71241.0,71223.0,0.07020204]
[1773540377254,0.06022686,71240.0,71223.0,0.07020204]
[1773540377452,0.06063736,71240.0,71223.0,0.07020204]
[1773540377643,0.07018627,71239.0,71223.0,0.07020204]
[1773540378003,0.07018627,71239.0,71222.0,0.0169]
[1773540378004,0.06022686,71238.0,71222.0,0.08710273]
[1773540378398,0.06022686,71238.0,71222.0,0.0169]
[1773540378693,0.06022686,71236.0,71222.0,0.0169]
[1773540379509,0.06063736,71236.0,71222.0,0.0169]
[1773540380652,0.06022686,71234.0,71215.0,0.0014]
[1773540381070,0.06022686,71234.0,71209.0,0.07021545]
[1773540381271,0.06022686,71234.0,71210.0,0.0014]
[1773540381652,0.06063736,71234.0,71211.0,0.05804501]
[1773540381852,0.06063736,71234.0,71211.0,0.05944501]
[1773540382660,0.07019218,71233.0,71213.0,0.05804501]
[1773540383694,0.07060268,71233.0,71213.0,0.05804501]
[1773540383904,0.07060268,71233.0,71212.0,0.07021288]
[1773540383905,0.0004105,71233.0,71214.0,1.203035]
[1773540384108,0.0004105,71233.0,71217.0,0.05804501]
[1773540384661,0.07060306,71233.0,71219.0,0.05804501]
[1773540385333,0.07023938,71246.0,71219.0,0.05804501]
[1773540385545,0.07040467,71241.0,71219.0,0.05804501]
[1773540385733,0.07180467,71241.0,71219.0,0.05804501]
[1773540386034,0.07040467,71241.0,71219.0,0.05804501]
[1773540386233,0.07040467,71241.0,71220.0,2.03007875]
[1773540386234,0.00162001,71241.0,71220.0,2.03007875]
[1773540386439,0.00162001,71241.0,71222.0,0.05804501]
[1773540386610,0.00162001,71241.0,71222.0,0.05789566]
[1773540386814,0.00022001,71241.0,71224.0,0.05804501]
[1773540387143,0.00022001,71241.0,71226.0,0.05804501]
[1773540387808,0.00022001,71241.0,71226.0,0.05789567]
[1773540388238,0.07172195,71254.0,71229.0,0.05804501]
[1773540388445,0.0701729,71253.0,71232.0,0.947575]
[1773540388629,0.0701727,71253.0,71235.0,0.05804501]
[1773540388797,0.0701727,71253.0,71237.0,0.05804501]
[1773540388998,0.0701727,71253.0,71237.0,0.05789569]
[1773540389414,0.00155,71254.0,71237.0,0.05789569]
[1773540389816,0.07016915,71257.0,71245.0,0.05804501]
[1773540389817,0.0014,71257.0,71245.0,0.05804501]
[1773540390012,0.0014,71257.0,71245.0,0.0576941]
[1773540390889,0.07038996,71256.0,71244.0,0.07018134]
[1773540391438,0.07038996,71256.0,71238.0,0.0701867]
[1773540391781,0.05631947,71255.0,71237.0,0.0014]
[1773540392115,0.05631947,71255.0,71231.0,0.07019352]
[1773540392470,0.05631947,71255.0,71230.0,0.07159488]
[1773540392820,0.05631947,71253.0,71222.0,0.0014]
[1773540393055,0.05642683,71253.0,71217.0,0.07020795]
[1773540393445,0.0014,71252.0,71218.0,0.05804501]
[1773540393650,0.05631947,71251.0,71218.0,0.05804501]
[1773540394051,0.0014,71250.0,71217.0,0.07020795]
[1773540394362,0.05631947,71248.0,71217.0,0.07160795]
[1773540394714,0.05631947,71248.0,71224.0,0.08]
[1773540394928,0.05631947,71246.0,71224.0,0.08]
[1773540395122,0.05631947,71246.0,71224.0,0.07985065]
[1773540395617,0.05631947,71246.0,71224.0,0.15005105]
[1773540396003,0.0014,71245.0,71224.0,0.15005105]
[1773540396189,0.05631947,71244.0,71224.0,0.07985065]
[1773540396368,0.05631947,71242.0,71224.0,0.07985065]
[1773540396994,0.05631947,71238.0,71224.0,0.07985065]
[1773540399423,0.05631947,71236.0,71224.0,0.07985065]
[1773540399574,0.05631947,71234.0,71224.0,0.07985065]
[1773540399783,0.05631947,71234.0,71224.0,0.07970131]
[1773540402043,0.07019218,71233.0,71224.0,0.07970131]
[1773540402246,0.07019218,71233.0,71216.0,0.0704085]
[1773540402247,0.05631947,71232.0,71216.0,0.0002]
[1773540402392,0.05631947,71232.0,71216.0,0.07040861]
[1773540404204,0.07019415,71231.0,71216.0,0.07040861]
[1773540405484,0.07030147,71231.0,71216.0,0.07040861]
[1773540405866,0.0014,71230.0,71216.0,0.07040861]
[1773540406391,0.07019612,71229.0,71216.0,0.07040861]
[1773540406555,0.05631947,71228.0,71216.0,0.0002]
[1773540408478,0.07019809,71227.0,71216.0,0.07040889]
[1773540408690,0.0014,71226.0,71216.0,0.0002]
[1773540410257,0.0014,71226.0,71216.0,0.07040861]
[1773540410692,0.07020007,71225.0,71216.0,0.07040861]
[1773540411804,0.07020007,71225.0,71216.0,0.0002]
[1773540412214,0.07159997,71226.0,71216.0,0.0002]
[1773540412215,0.0701993,71226.0,71216.0,0.07040795]
[1773540412414,0.0701993,71226.0,71216.0,0.0002]
[1773540414082,0.0701993,71226.0,71216.0,0.07040857]
[1773540414282,0.0701993,71226.0,71216.0,0.0002]
[1773540414614,0.00010732,71231.0,71216.0,0.0002]
[1773540414615,0.0703018,71231.0,71217.0,0.05447754]
[1773540414853,0.0014,71245.0,71219.0,0.05447754]
[1773540415042,0.0014,71245.0,71222.0,1.188481]
[1773540415221,0.0014,71245.0,71225.0,0.05447754]
[1773540415544,0.05628954,71244.0,71227.0,0.05447754]
[1773540417670,0.05628954,71244.0,71211.0,0.11111036]
[1773540417671,0.05628954,71242.0,71211.0,0.11111036]
[1773540417837,0.05628954,71239.0,71209.0,0.07041554]
[1773540418208,0.0014,71238.0,71216.0,0.0002]
[1773540418447,0.00022001,71230.0,71216.0,0.0002]
[1773540418801,0.05768954,71229.0,71216.0,0.0002]
[1773540419745,0.05768954,71229.0,71216.0,5.069e-05]
[1773540420148,0.07019711,71228.0,71216.0,5.069e-05]
[1773540420328,0.05628954,71227.0,71216.0,5.069e-05]
[1773540421341,0.07019711,71228.0,71216.0,5.069e-05]
[1773540421519,0.07040785,71238.0,71218.0,0.05447754]
[1773540422132,0.0014,71237.0,71218.0,0.05447754]
[1773540422428,0.07018923,71236.0,71220.0,0.05447754]
[1773540424086,0.07018923,71236.0,71217.0,0.07160754]
[1773540424292,0.05628954,71233.0,71217.0,0.07160754]
[1773540425482,0.05628954,71233.0,71217.0,0.0014]
[1773540425885,0.05628954,71233.0,71217.0,0.07160772]
[1773540426289,0.07019317,71232.0,71217.0,0.07160772]
[1773540426488,0.07019317,71232.0,71217.0,0.1116105]
[1773540427048,0.07019317,71232.0,71217.0,0.07160772]
[1773540428745,0.07019317,71232.0,71218.0,0.0014]
[1773540429350,0.12670272,71233.0,71218.0,0.0014]
[1773540429351,0.00022001,71233.0,71218.0,0.0014]
[1773540429497,0.07018652,71239.0,71219.0,0.05055821]
[1773540429704,0.07018556,71240.0,71219.0,0.05055821]
[1773540429910,0.07040796,71238.0,71219.0,0.05055821]
[1773540430376,0.00022001,71238.0,71222.0,0.362231]
[1773540430579,0.07040739,71238.0,71225.0,0.05025304]
[1773540430772,0.07040739,71238.0,71226.0,0.07159908]
[1773540431125,0.00022001,71241.0,71227.0,0.05025304]
[1773540431932,0.07040446,71241.0,71227.0,0.05025304]
[1773540433128,0.07040446,71241.0,71228.0,0.07019711]
[1773540433879,0.05628954,71240.0,71227.0,0.0014]
[1773540434053,0.05628954,71240.0,71226.0,0.0014]
[1773540434252,0.05628954,71240.0,71216.0,0.07025924]
[1773540434606,0.05628954,71240.0,71217.0,0.0014]
[1773540434793,0.05628954,71240.0,71216.0,0.07025924]
[1773540434990,0.05628954,71240.0,71218.0,0.0014]
[1773540435194,0.05628954,71238.0,71219.0,0.07020598]
[1773540435368,0.05628954,71238.0,71219.0,0.07160598]
[1773540436164,0.05628954,71238.0,71225.0,0.00035091]
[1773540436395,0.05628954,71238.0,71219.0,0.0014]
[1773540437002,0.05628954,71238.0,71218.0,0.0016]
[1773540437207,0.07018824,71237.0,71218.0,0.0016]
[1773540437406,0.05628954,71236.0,71218.0,0.0016]
[1773540437706,0.05628954,71234.0,71218.0,0.07180622]
[1773540438105,0.05628954,71234.0,71218.0,0.07040622]
[1773540438289,0.05628954,71234.0,71218.0,0.07180622]
[1773540440183,0.07019218,71233.0,71218.0,0.07180622]
[1773540440512,0.05628954,71232.0,71218.0,0.07180622]
[1773540441506,0.05628954,71232.0,71219.0,0.0014]
[1773540442144,0.05628954,71232.0,71219.0,0.00104892]
[1773540442329,0.07019415,71231.0,71220.0,0.07020499]
[1773540443297,0.12253418,71231.0,71220.0,0.07020499]
[1773540443503,0.07019415,71232.0,71220.0,0.07020499]
[1773540444508,0.07019278,71233.0,71220.0,0.07020499]
[1773540444983,0.07019278,71233.0,71218.0,0.07040499]
[1773540444984,0.05234003,71232.0,71218.0,0.0002]
[1773540445119,0.05234003,71232.0,71218.0,0.07040691]
[1773540445854,0.05234003,71232.0,71214.0,0.0014]
[1773540446510,0.07019415,71231.0,71214.0,0.0014]
[1773540446708,0.05234003,71230.0,71214.0,0.0014]
[1773540446956,0.05234003,71230.0,71214.0,0.07161081]
[1773540447111,0.05234003,71230.0,71214.0,0.0014]
[1773540448764,0.05234003,71228.0,71214.0,0.0014]
[1773540451072,0.07019809,71227.0,71214.0,0.0014]
[1773540451271,0.05234003,71226.0,71214.0,0.0014]
[1773540451979,0.07019809,71227.0,71214.0,0.07161071]
[1773540452426,0.07019762,71228.0,71214.0,0.07181071]
[1773540452611,0.0014,71231.0,71215.0,0.0532789]
[1773540452755,0.0014,71232.0,71216.0,0.0014]
[1773540452956,0.05374003,71232.0,71216.0,0.0014]
[1773540453157,0.07019415,71231.0,71217.0,0.07020795]
[1773540453350,0.05234003,71230.0,71217.0,0.07020795]
[1773540455418,0.07019612,71229.0,71217.0,0.07020795]
[1773540456329,0.07019612,71229.0,71216.0,0.0014]
[1773540456548,0.05234003,71228.0,71216.0,0.0014]
[1773540456732,0.05234003,71228.0,71217.0,0.0014]
[1773540457246,0.05234003,71228.0,71214.0,0.07041078]
[1773540457430,0.05234003,71228.0,71218.0,0.0014]
[1773540457640,0.07019809,71227.0,71218.0,0.0014]
[1773540458036,0.07019809,71227.0,71216.0,0.07020858]
[1773540458239,0.07019809,71227.0,71218.0,0.0014]
[1773540458797,0.07019809,71228.0,71218.0,0.0014]
[1773540458992,0.07019226,71233.0,71219.0,0.0532789]
[1773540459440,0.00022001,71238.0,71221.0,0.04096036]
[1773540459660,0.07018639,71239.0,71224.0,0.564477]
[1773540459805,0.07018639,71239.0,71225.0,0.0546789]
[1773540461311,0.07018528,71240.0,71225.0,0.0546789]
[1773540461959,0.07018528,71240.0,71226.0,0.07019908]
[1773540462263,0.07018528,71240.0,71227.0,0.0532789]
[1773540462682,0.07016165,71264.0,71228.0,2.402971]
[1773540462832,0.05234003,71263.0,71230.0,1.101182]
[1773540463030,0.05234003,71263.0,71233.0,0.03123923]
[1773540463233,0.05234003,71263.0,71235.0,0.03123923]
[1773540463433,0.05234003,71263.0,71237.0,0.03123923]
[1773540463648,0.07051956,71264.0,71241.0,0.03351858]
[1773540464007,0.07051956,71264.0,71244.0,0.07018134]
[1773540464191,0.07051956,71264.0,71245.0,0.03351858]
[1773540464987,0.07051956,71264.0,71246.0,0.0014]
[1773540465345,0.00035791,71264.0,71246.0,0.0014]
[1773540465548,0.00035791,71264.0,71247.0,0.00125019]
[1773540465888,0.08139604,71270.0,71250.0,0.555762]
[1773540466136,0.08150335,71270.0,71253.0,0.00125019]
[1773540466278,0.08150335,71270.0,71254.0,0.0014]
[1773540466472,0.05655504,71269.0,71254.0,0.0014]
[1773540467695,0.08150335,71270.0,71254.0,0.0014]
[1773540468225,0.00022001,71263.0,71255.0,0.07017051]
[1773540468579,0.01134731,71270.0,71255.0,0.07017051]
[1773540469024,0.01134731,71270.0,71256.0,0.00096172]
[1773540469507,0.00022001,71271.0,71256.0,0.00096172]
[1773540469829,0.00022001,71271.0,71257.0,0.00045561]
[1773540470183,0.00022001,71271.0,71258.0,0.07016756]
[1773540470387,0.00022001,71271.0,71259.0,0.0005594]
[1773540471139,0.00035073,71278.0,71260.0,0.17850966]
[1773540471310,0.05685355,71293.0,71263.0,0.00061405]
[1773540471505,0.05685355,71293.0,71266.0,1.012404]
[1773540472052,0.05685355,71293.0,71266.0,0.987834]
[1773540472283,0.07013409,71292.0,71268.0,0.07015771]
[1773540472556,0.05685355,71291.0,71267.0,0.00104909]
[1773540472702,0.0014,71290.0,71267.0,0.00104909]
[1773540472903,0.05685355,71289.0,71265.0,0.07015869]
[1773540473144,0.05685355,71289.0,71266.0,0.0014]
[1773540473342,0.05685355,71289.0,71265.0,0.07015869]
[1773540473823,0.05685355,71289.0,71266.0,0.0014]
[1773540474218,0.07013803,71288.0,71267.0,0.07155843]
[1773540474429,0.05685355,71287.0,71267.0,0.07155843]
[1773540474634,0.05685355,71287.0,71267.0,0.0014]
[1773540474850,0.05685355,71287.0,71262.0,0.07016264]
[1773540475056,0.05685355,71287.0,71268.0,0.0014]
[1773540475673,0.05825355,71287.0,71268.0,0.0014]
[1773540476096,0.05847356,71287.0,71268.0,0.0014]
[1773540476299,0.07013999,71286.0,71266.0,0.07015885]
[1773540476456,0.07176,71287.0,71267.0,0.0014]
[1773540476457,0.00022001,71287.0,71267.0,0.0014]
[1773540476641,0.00022001,71287.0,71268.0,0.00104674]
[1773540476845,0.07013999,71286.0,71268.0,0.00104674]
[1773540477047,0.07013999,71286.0,71268.0,0.00089748]
[1773540479495,0.07013999,71286.0,71269.0,0.07155673]
[1773540479662,0.07035991,71287.0,71269.0,0.07155673]
[1773540480367,0.07035991,71287.0,71269.0,0.07140748]
[1773540480568,0.07035991,71287.0,71269.0,0.07136748]
[1773540480770,0.07035919,71287.0,71269.0,0.07136748]
[1773540480965,0.07035919,71287.0,71269.0,0.0724107]
[1773540481609,0.12728737,71287.0,71269.0,0.07136748]
[1773540481811,0.05692818,71286.0,71269.0,0.06996748]
[1773540481991,0.05692818,71286.0,71270.0,0.0014]
[1773540482368,0.05692818,71286.0,71269.0,0.06996748]
[1773540482578,0.05692818,71286.0,71270.0,0.0014]
[1773540483049,0.05692818,71286.0,71269.0,0.06996748]
[1773540483199,0.05692818,71286.0,71270.0,0.0014]
[1773540483405,0.05692818,71284.0,71271.0,0.07015476]
[1773540484106,0.05692818,71284.0,71270.0,0.07155476]
[1773540485675,0.07014295,71283.0,71270.0,0.07155476]
[1773540485912,0.07014098,71285.0,71270.0,0.07155476]
[1773540486115,0.00014927,71284.0,71270.0,0.07155476]
[1773540486364,0.01871608,71311.0,71278.0,1.241203]
[1773540486514,0.05692818,71310.0,71282.0,0.988072]
[1773540486702,0.05692818,71310.0,71285.0,2.342933]
[1773540486902,0.07011133,71316.0,71283.0,0.0014]
[1773540486903,0.07026423,71313.0,71291.0,0.02069418]
[1773540487138,0.07026423,71313.0,71290.0,0.17710966]
[1773540487139,0.07026384,71313.0,71293.0,0.05612423]
[1773540487338,0.00015,71313.0,71293.0,0.05612423]
[1773540487541,0.00025733,71313.0,71293.0,0.05612423]
[1773540487755,0.00025733,71313.0,71294.0,0.07013212]
[1773540487923,0.07037108,71313.0,71295.0,0.05612423]
[1773540488998,0.00025733,71313.0,71295.0,0.05612423]
[1773540489207,0.0001164,71319.0,71295.0,0.05612423]
[1773540489408,0.0001164,71319.0,71300.0,0.17710966]
[1773540489714,0.0001164,71319.0,71303.0,0.07012327]
[1773540490081,0.01124,71327.0,71307.0,0.65539]
[1773540490252,0.01124,71327.0,71310.0,0.05612423]
[1773540490599,0.13426484,71327.0,71311.0,0.0014]
[1773540490733,0.13426484,71327.0,71312.0,0.0014]
[1773540490939,0.08134014,71327.0,71312.0,0.0014]
[1773540491135,0.01124,71327.0,71313.0,0.05612423]
[1773540491453,0.01124,71327.0,71304.0,0.191438]
[1773540491454,0.0529247,71326.0,71304.0,0.191438]
[1773540491651,0.0529247,71326.0,71305.0,0.0014]
[1773540491852,0.0529247,71326.0,71308.0,0.532764]
[1773540491853,0.07010164,71325.0,71308.0,0.532764]
[1773540492072,0.07010164,71325.0,71308.0,0.382767]
[1773540492276,0.08134042,71327.0,71308.0,0.382767]
[1773540492277,0.08134042,71327.0,71309.0,0.05612423]
[1773540492483,0.08134042,71327.0,71310.0,0.201355]
[1773540492828,0.13426512,71327.0,71310.0,0.201355]
[1773540493023,0.08134042,71327.0,71310.0,0.20105666]
[1773540493225,0.08134042,71327.0,71311.0,0.05612423]
[1773540493534,0.08134042,71327.0,71312.0,0.0014]
[1773540494136,0.08134042,71327.0,71313.0,0.07011344]
[1773540494886,0.0543247,71326.0,71300.0,0.07012622]
[1773540495301,0.0543247,71326.0,71301.0,0.0014]
[1773540495449,0.0543247,71326.0,71300.0,0.07012622]
[1773540495648,0.0543247,71326.0,71301.0,0.0014]
[1773540496073,0.0529247,71324.0,71302.0,0.0014]
[1773540496343,0.0529247,71324.0,71295.0,0.00010733]
[1773540496512,0.0529247,71324.0,71298.0,0.0014]
[1773540499600,0.0529247,71322.0,71298.0,0.07152764]
[1773540500197,0.0529247,71322.0,71298.0,0.07012764]
[1773540501688,0.05794097,71320.0,71298.0,0.0014]
[1773540501913,0.05794097,71318.0,71298.0,0.0014]
[1773540503418,0.07010557,71321.0,71298.0,0.0014]
[1773540503646,0.12804654,71321.0,71299.0,0.07012721]
[1773540503848,0.05794097,71320.0,71299.0,0.12470772]
[1773540504968,0.05794097,71320.0,71299.0,0.07012721]
[1773540505385,0.05794097,71320.0,71300.0,0.05458051]
[1773540505761,0.07010754,71319.0,71301.0,0.07012524]
[1773540505965,0.07010754,71319.0,71292.0,0.07013331]
[1773540505966,0.05794097,71318.0,71292.0,0.07013331]
[1773540506133,0.05794097,71316.0,71290.0,0.07013594]
[1773540506337,0.0580482,71316.0,71293.0,0.0014]
[1773540506760,0.0580482,71316.0,71292.0,0.0014]
[1773540507977,0.07011147,71315.0,71292.0,0.0014]
[1773540508155,0.05794097,71314.0,71292.0,0.0014]
[1773540509400,0.05794097,71314.0,71298.0,0.0002]
[1773540509983,0.05794097,71314.0,71286.0,0.07013903]
[1773540509984,0.07011344,71313.0,71288.0,0.0014]
[1773540510293,0.07011344,71313.0,71287.0,0.0014]
[1773540510294,0.05794097,71312.0,71287.0,0.0014]
[1773540510606,0.05794097,71308.0,71277.0,0.05458051]
[1773540510771,0.05794097,71308.0,71281.0,0.0014]
[1773540511166,0.05794097,71308.0,71282.0,0.05458051]
[1773540511583,0.05794097,71306.0,71282.0,0.05458051]
[1773540511804,0.05794097,71306.0,71281.0,0.0014]
[1773540512014,0.07012327,71303.0,71282.0,0.07014393]
[1773540512218,0.05934097,71302.0,71282.0,0.07014393]
[1773540512914,0.05773906,71302.0,71282.0,0.07014393]
[1773540514983,0.07011147,71315.0,71285.0,0.05458051]
[1773540515217,0.05794097,71314.0,71286.0,0.0014]
[1773540515730,0.0014,71313.0,71286.0,0.0014]
[1773540515917,0.05794097,71312.0,71286.0,0.0014]
[1773540516270,0.05794097,71312.0,71282.0,0.07014393]
[1773540516488,0.05794097,71312.0,71283.0,0.0014]
[1773540516688,0.05794097,71312.0,71284.0,0.0014]
[1773540516913,0.0701154,71311.0,71285.0,0.07014098]
[1773540517115,0.04523433,71309.0,71285.0,0.07014098]
[1773540517400,0.05794097,71308.0,71285.0,0.07014098]
[1773540517619,0.05794097,71306.0,71285.0,0.07014098]
[1773540519280,0.05794097,71304.0,71285.0,0.07014098]
[1773540519782,0.05794097,71304.0,71286.0,0.05458051]